bitfinex/quotes_SOLUSD_20240702
["timestamp","ask_amount","ask_price","bid_price","bid_amount"]
[1719900285888,6.7073,149.09,149.06,37.12]
[1719900286087,6.7073,149.09,149.07,12.12]
[1719900286671,6.7073,149.09,149.06,37.12]
[1719900287569,6.707,149.1,149.06,37.12]
[1719900287768,6.707,149.1,149.07,12.12]
[1719900288191,6.7073,149.09,149.07,12.12]
[1719900289791,6.707,149.1,149.07,12.12]
[1719900290890,6.7073,149.09,149.06,25.0]
[1719900291084,6.7073,149.09,149.07,12.12]
[1719900291387,6.7073,149.09,149.06,25.0]
[1719900291572,6.7073,149.09,149.07,12.12]
[1719900291778,6.7078,149.08,149.07,12.12]
[1719900291977,6.7078,149.08,149.06,25.0]
[1719900292177,6.7082,149.07,149.06,25.0]
[1719900292378,6.7082,149.07,149.04,25.0]
[1719900292579,6.7079,149.08,149.06,12.12]
[1719900292890,6.7073,149.1,149.07,12.12]
[1719900293094,6.7073,149.1,149.08,12.12]
[1719900293291,6.7079,149.08,149.04,25.0]
[1719900293491,6.7079,149.08,149.05,12.12]
[1719900293791,6.7074,149.09,149.07,12.12]
[1719900294691,6.7074,149.09,149.06,25.0]
[1719900297571,6.7078,149.08,149.06,25.0]
[1719900298380,6.7082,149.07,149.04,25.0]
[1719900298575,6.7082,149.07,149.05,12.12]
[1719900298775,6.7087,149.06,149.04,25.0]
[1719900298977,6.7091,149.05,149.04,25.0]
[1719900299183,6.7088,149.06,149.04,37.12]
[1719900300384,6.7083,149.07,149.04,37.12]
[1719900301504,6.7087,149.06,149.03,12.12]
[1719900301686,6.7083,149.07,149.04,12.12]
[1719900303099,6.7083,149.07,149.05,12.12]
[1719900303298,6.7079,149.08,149.05,12.12]
[1719900304093,6.7072,149.1,149.05,6.7091]
[1719900304694,6.7074,149.09,149.05,6.7091]
[1719900305477,6.7078,149.08,149.04,31.7096]
[1719900305875,6.7078,149.08,149.06,12.12]
[1719900306982,6.7075,149.09,149.06,12.12]
[1719900307593,6.7075,149.09,149.06,37.12]
[1719900307799,6.7075,149.09,149.07,12.12]
[1719900309109,21.4965703,149.12,149.04,25.0]
[1719900309110,6.7078,149.08,149.04,31.7094]
[1719900309288,6.7078,149.08,149.06,12.12]
[1719900312101,6.7074,149.09,149.06,37.12]
[1719900313096,6.7078,149.08,149.06,37.12]
[1719900313901,6.7082,149.07,149.03,65.2547]
[1719900314107,26.1418703,149.12,149.03,65.2547]
[1719900314108,6.7094,149.05,149.03,37.12]
[1719900314713,6.7083,149.07,149.04,12.12]
[1719900314919,6.7083,149.07,149.05,12.12]
[1719900315204,6.7087,149.06,149.05,12.12]
[1719900315581,6.7082,149.07,149.05,12.12]
[1719900316319,6.7082,149.07,149.03,31.7099]
[1719900316607,6.7082,149.07,149.05,12.12]
[1719900317209,6.7087,149.06,149.05,12.12]
[1719900317511,6.7087,149.06,149.04,12.12]
[1719900318608,6.7087,149.06,149.03,25.0]
[1719900318809,6.7087,149.06,149.04,12.12]
[1719900319408,6.7084,149.07,149.04,12.12]
[1719900320089,6.7084,149.07,149.03,25.0]
[1719900320289,6.7088,149.06,149.03,25.0]
[1719900320708,6.7092,149.05,149.03,37.12]
[1719900321291,6.7097,149.04,149.01,25.0]
[1719900321595,6.7103,149.03,149.02,12.12]
[1719900321795,6.7103,149.03,149.01,25.0]
[1719900322105,6.7103,149.03,148.99,48.4903]
[1719900322293,6.7106,149.02,148.99,37.12]
[1719900322906,12.12,149.04,149.0,6.7112]
[1719900323109,12.12,149.06,149.01,12.12]
[1719900323294,28.8907,149.07,149.02,12.12]
[1719900324612,6.7099,149.04,149.02,12.12]
[1719900325197,6.71,149.03,149.02,12.12]
[1719900325805,6.7096,149.04,149.02,12.12]
[1719900327213,12.12,149.06,149.01,12.12]
[1719900327518,6.7109,149.02,149.01,12.12]
[1719900329725,6.7109,149.02,148.99,25.0]
[1719900330014,6.7109,149.02,149.0,12.12]
[1719900330625,6.7101,149.03,149.01,12.12]
[1719900333118,6.7101,149.03,148.99,25.0]
[1719900333300,6.7101,149.03,149.01,12.12]
[1719900334929,6.7101,149.03,148.99,25.0]
[1719900335221,6.7105,149.02,148.99,25.0]
[1719900335416,6.7105,149.02,149.0,12.12]
[1719900336624,6.7101,149.03,149.0,12.12]
[1719900337521,6.7101,149.03,148.99,25.0]
[1719900337708,6.7105,149.02,149.0,12.12]
[1719900337911,6.7105,149.02,148.99,25.0]
[1719900338109,6.7109,149.01,148.99,25.0]
[1719900338313,6.7109,149.01,148.97,6.7126]
[1719900338510,6.7109,149.01,148.99,12.12]
[1719900339210,34.9346,149.04,148.98,37.12]
[1719900339211,6.7114,149.0,148.98,37.12]
[1719900340006,34.9346,149.04,148.96,25.0]
[1719900340007,6.7118,148.99,148.96,25.0]
[1719900340209,6.7118,148.99,148.97,12.12]
[1719900341505,6.7118,148.99,148.96,25.0]
[1719900341709,6.7118,148.99,148.97,12.12]
[1719900342259,6.7126,148.98,148.94,25.0]
[1719900342758,6.7126,148.98,148.96,12.12]
[1719900343347,6.7128,148.97,148.94,25.0]
[1719900343650,6.7124,148.98,148.95,12.12]
[1719900343837,6.7124,148.98,148.94,31.7139]
[1719900344033,6.712,148.99,148.94,31.7139]
[1719900344354,28.8978,149.01,148.94,31.7139]
[1719900344355,6.7124,148.98,148.94,25.0]
[1719900344560,6.7127,148.97,148.92,16.787]
[1719900344859,6.7127,148.97,148.91,12.12]
[1719900344860,6.7137,148.95,148.91,12.12]
[1719900345152,6.7137,148.95,148.92,25.0]
[1719900345353,6.7133,148.96,148.92,37.12]
[1719900345525,6.7133,148.96,148.92,25.0]
[1719900345727,6.7133,148.96,148.92,37.12]
[1719900346128,6.7133,148.96,148.92,25.0]
[1719900346328,6.7133,148.96,148.92,37.12]
[1719900346854,29.8881,148.98,148.94,6.7139]
[1719900347031,29.8881,148.98,148.94,18.8339]
[1719900347226,29.8881,148.98,148.95,12.12]
[1719900347433,6.7127,148.97,148.95,12.12]
[1719900347830,29.8882,148.98,148.95,12.12]
[1719900348361,29.8882,148.98,148.94,12.12]
[1719900348664,16.5484,148.98,148.94,12.12]
[1719900348962,12.12,148.97,148.92,12.12]
[1719900349171,12.12,148.97,148.93,25.0]
[1719900349456,25.9249703,148.98,148.93,37.12]
[1719900349660,25.9249703,148.98,148.94,12.12]
[1719900349661,6.7128,148.97,148.94,12.12]
[1719900349833,25.9249703,148.98,148.94,12.12]
[1719900350034,32.6372703,148.98,148.94,12.12]
[1719900350235,6.7128,148.97,148.94,12.12]
[1719900350663,6.7128,148.97,148.95,25.0]
[1719900351241,6.7128,148.97,148.94,12.12]
[1719900352268,6.7128,148.97,148.93,25.0]
[1719900352565,6.7128,148.97,148.94,12.12]
[1719900352934,6.7128,148.97,148.95,25.0]
[1719900354838,25.9249703,148.98,148.93,25.0]
[1719900355038,6.714,148.95,148.93,25.0]
[1719900355346,6.714,148.95,148.93,37.12]
[1719900355753,6.7132,148.96,148.93,37.12]
[1719900358244,6.7128,148.97,148.93,37.12]
[1719900358777,25.9249703,148.98,148.95,25.0]
[1719900358941,6.7122,148.99,148.95,37.12]
[1719900359135,6.57801287,149.05,148.95,37.12]
[1719900359136,6.7088,149.06,149.0,25.0]
[1719900359361,6.7082,149.07,149.02,31.7104]
[1719900359568,12.12,149.1,149.04,25.0]
[1719900359747,6.7074,149.09,149.04,31.7092]
[1719900360074,6.7074,149.09,149.05,12.12]
[1719900360382,6.7074,149.09,149.06,12.12]
[1719900360671,6.7078,149.08,149.04,25.0]
[1719900360844,12.12,149.1,149.05,12.12]
[1719900361040,21.9922,149.12,149.02,41.7756]
[1719900361041,12.12,149.08,149.02,41.7756]
[1719900361352,6.709,149.06,149.03,12.12]
[1719900361935,6.709,149.06,149.02,41.7756]
[1719900362240,6.709,149.06,149.02,53.8956]
[1719900363457,6.7096,149.04,149.02,25.0]
[1719900364362,6.7092,149.05,149.02,25.0]
[1719900364656,12.12,149.06,149.02,37.12]
[1719900364657,6.7088,149.06,149.02,37.12]
[1719900364861,6.7088,149.06,149.03,12.12]
[1719900365246,6.7083,149.07,149.03,12.12]
[1719900366363,6.7089,149.06,149.03,12.12]
[1719900367958,6.7089,149.06,149.02,43.8304]
[1719900368287,6.7089,149.06,149.02,37.12]
[1719900376080,6.7092,149.05,149.02,37.12]
[1719900376279,6.7096,149.04,149.02,25.0]
[1719900377274,6.7093,149.05,149.02,25.0]
[1719900377468,6.7088,149.06,149.02,37.12]
[1719900377868,6.7088,149.06,149.02,43.8304]
[1719900379970,6.7088,149.06,149.02,37.12]
[1719900381372,6.7092,149.05,149.02,25.0]
[1719900382181,6.7097,149.04,149.02,25.0]
[1719900383202,18.8292,149.05,149.02,25.0]
[1719900383878,6.7096,149.04,149.02,25.0]
[1719900384081,18.8293,149.05,149.02,25.0]
[1719900384396,12.12,149.03,149.0,25.0]
[1719900384885,6.7109,149.01,148.97,16.7811]
[1719900385066,6.7109,149.01,148.96,25.0]
[1719900385067,6.7115,149.0,148.96,31.713]
[1719900385258,6.7115,149.0,148.96,43.833]
[1719900386086,18.8311,149.01,148.96,43.833]
[1719900386267,18.8311,149.01,148.97,18.8327]
[1719900386467,6.7111,149.01,148.97,18.8327]
[1719900387186,6.7111,149.01,148.97,6.7127]
[1719900387775,6.7111,149.01,148.97,18.8327]
[1719900389098,18.8305,149.02,148.98,6.7122]
[1719900389267,18.8305,149.02,148.98,43.8322]
[1719900389467,18.8302,149.03,148.98,18.8322]
[1719900389677,18.8302,149.03,148.98,43.8322]
[1719900389880,6.7105,149.02,148.98,43.8322]
[1719900391285,6.7111,149.01,148.96,41.7826]
[1719900391490,6.711,149.01,148.97,12.12]
[1719900391686,6.711,149.01,148.98,37.12]
[1719900391873,6.711,149.01,148.98,25.0]
[1719900392075,6.711,149.01,148.98,37.12]
[1719900393482,16.7731,149.05,148.98,37.12]
[1719900393483,6.7115,149.0,148.98,37.12]
[1719900393678,6.711,149.01,148.98,25.0]
[1719900394571,6.7114,149.0,148.98,25.0]
[1719900395386,12.12,149.02,148.98,25.0]
[1719900396095,6.7114,149.0,148.98,25.0]
[1719900397095,6.7114,149.0,148.96,48.4954]
[1719900397309,6.7114,149.0,148.96,60.6154]
[1719900397474,6.7111,149.01,148.98,25.0]
[1719900398411,6.7106,149.02,148.98,25.0]
[1719900398578,18.8306,149.02,148.98,25.0]
[1719900400196,6.7109,149.01,148.98,25.0]
[1719900400834,6.7104,149.03,148.98,31.7121]
[1719900400992,16.7731,149.05,148.98,31.7121]
[1719900400993,6.7106,149.02,149.0,25.0]
[1719900401693,6.7106,149.02,148.99,12.12]
[1719900402500,6.7106,149.02,148.98,60.6125]
[1719900403795,6.7106,149.02,148.98,53.9004]
[1719900404479,6.7106,149.02,149.0,25.0]
[1719900405904,6.7096,149.04,149.0,31.7113]
[1719900406205,6.7093,149.05,149.02,12.12]
[1719900406500,12.12,149.06,149.01,12.12]
[1719900406898,16.5096,149.07,149.01,37.12]
[1719900407088,12.12,149.06,149.01,37.12]
[1719900407708,6.71,149.03,149.01,37.12]
[1719900407897,6.7097,149.04,149.01,37.12]
[1719900408517,12.12,149.06,148.99,6.7117]
[1719900408518,6.7106,149.02,148.99,25.0]
[1719900408682,6.7106,149.02,148.98,16.7804]
[1719900408683,6.7106,149.02,149.01,25.0]
[1719900410202,6.7101,149.03,149.01,25.0]
[1719900410411,6.7101,149.03,149.0,12.12]
[1719900410897,6.7101,149.03,148.99,25.0]
[1719900411102,6.7101,149.03,149.01,25.0]
[1719900413115,6.7096,149.04,149.01,37.12]
[1719900415489,6.7101,149.03,149.01,25.0]
[1719900415689,6.7101,149.03,149.01,37.12]
[1719900416410,12.12,149.06,148.99,25.0]
[1719900416411,6.711,149.01,148.99,25.0]
[1719900416585,6.711,149.01,149.0,12.12]
[1719900416881,6.7106,149.02,149.0,12.12]
[1719900417309,6.7106,149.02,149.01,25.0]
[1719900418504,6.7106,149.02,148.99,25.0]
[1719900418703,6.7106,149.02,148.99,37.12]
[1719900420114,6.7102,149.03,148.99,37.12]
[1719900420301,6.7102,149.03,149.01,25.0]
[1719900420701,6.7095,149.05,149.01,25.0]
[1719900420901,6.7096,149.04,149.01,37.12]
[1719900423311,6.71,149.03,149.01,37.12]
[1719900424310,6.711,149.01,148.99,25.0]
[1719900424503,6.7106,149.02,148.99,25.0]
[1719900424706,6.7106,149.02,148.99,37.12]
[1719900426313,6.7106,149.02,148.99,25.0]
[1719900426495,6.7106,149.02,148.99,37.12]
[1719900433016,6.711,149.01,148.99,25.0]
[1719900433211,6.711,149.01,148.99,37.12]
[1719900433402,16.7733,149.05,148.99,37.12]
[1719900433403,6.7105,149.02,148.99,37.12]
[1719900433811,6.7105,149.02,148.99,25.0]
[1719900434020,6.7105,149.02,148.99,24.96229449]
[1719900434342,6.7105,149.02,148.99,37.08229449]
[1719900435423,12.12,149.04,148.99,37.08229449]
[1719900435624,12.12,149.06,149.01,37.08229449]
[1719900436118,6.71,149.03,149.01,24.96229449]
[1719900437820,16.5096,149.07,148.99,24.96229449]
[1719900438032,6.7114,149.0,148.99,24.96229449]
[1719900439298,12.12,149.02,148.99,24.96229449]
[1719900439299,6.711,149.01,148.99,24.96229449]
[1719900439517,6.7114,149.0,148.97,24.96229449]
[1719900439899,6.7119,148.99,148.97,24.96229449]
[1719900440312,6.7119,148.99,148.95,40.20969449]
[1719900440313,18.8319,148.99,148.95,40.20969449]
[1719900440722,6.7119,148.99,148.95,52.32969449]
[1719900440918,6.7119,148.99,148.95,59.04319449]
[1719900441117,6.7123,148.98,148.95,40.20969449]
[1719900441314,6.7123,148.98,148.95,24.96229449]
[1719900446523,18.8323,148.98,148.95,24.96229449]
[1719900447634,6.7123,148.98,148.95,24.96229449]
[1719900447812,18.8323,148.98,148.95,24.96229449]
[1719900449623,12.12,148.97,148.95,24.96229449]
[1719900451328,12.12,148.97,148.93,41.74809449]
[1719900451329,12.12,148.96,148.93,41.74809449]
[1719900451834,18.8332,148.96,148.93,41.74809449]
[1719900452135,12.12,148.96,148.93,41.74809449]
[1719900452337,18.8332,148.96,148.93,41.74809449]
[1719900452832,6.509,149.0,148.9,24.96229449]
[1719900452833,12.12,148.94,148.9,24.96229449]
[1719900453221,12.12,148.93,148.9,24.96229449]
[1719900453821,12.12,148.93,148.87,0.8526638]
[1719900453822,12.12,148.91,148.87,0.8526638]
[1719900454021,12.12,148.88,148.87,0.8526638]
[1719900454220,18.8368,148.88,148.87,0.8526638]
[1719900454530,51.7168,148.88,148.87,0.8526638]
[1719900454837,63.8368,148.88,148.87,0.8526638]
[1719900455136,18.8368,148.88,148.87,0.8526638]
[1719900455921,6.7168,148.88,148.87,0.8526638]
[1719900456243,18.8368,148.88,148.87,0.8526638]
[1719900456913,6.7168,148.88,148.87,0.8526638]
[1719900457112,18.8368,148.88,148.87,0.8526638]
[1719900458637,6.7168,148.88,148.87,0.8526638]
[1719900458835,18.8368,148.88,148.87,0.8526638]
[1719900459341,6.7168,148.88,148.87,0.8526638]
[1719900460954,6.7165,148.89,148.87,0.8526638]
[1719900461343,6.7168,148.88,148.87,0.8526638]
[1719900464526,26.30395329,148.93,148.89,24.96229449]
[1719900464737,26.30395329,148.93,148.87,0.8526638]
[1719900464738,12.12,148.92,148.87,37.93495829]
[1719900464938,6.7164,148.89,148.87,37.93495829]
[1719900466143,6.7168,148.88,148.87,25.81495829]
[1719900467836,6.7165,148.89,148.87,25.81495829]
[1719900468232,18.8368,148.88,148.87,0.8526638]
[1719900469145,6.7168,148.88,148.87,0.8526638]
[1719900469348,18.8368,148.88,148.87,0.8526638]
[1719900472058,41.3472,148.88,148.87,0.8526638]
[1719900472237,86.3472,148.88,148.87,0.8526638]
[1719900473744,41.3472,148.88,148.87,0.8526638]
[1719900473941,86.3472,148.88,148.87,0.8526638]
[1719900474356,6.7204,148.8,148.77,24.96229449]
[1719900474539,6.72,148.81,148.79,24.96229449]
[1719900474935,18.8394,148.83,148.79,24.96229449]
[1719900475253,16.7962,148.85,148.79,24.96229449]
[1719900475462,6.7196,148.82,148.79,24.96229449]
[1719900476357,6.7196,148.82,148.81,24.96229449]
[1719900476667,6.7212,148.79,148.77,24.96229449]
[1719900476960,6.7201,148.81,148.79,24.96229449]
[1719900477361,6.7204,148.8,148.79,24.96229449]
[1719900477845,6.7201,148.81,148.79,24.96229449]
[1719900479270,6.7208,148.79,148.77,24.96229449]
[1719900479469,6.7213,148.78,148.77,24.96229449]
[1719900480951,6.7213,148.78,148.77,23.96229449]
[1719900481561,6.7222,148.76,148.75,23.96229449]
[1719900481758,16.2825,148.82,148.75,36.08229449]
[1719900482069,16.2825,148.82,148.75,23.96229449]
[1719900482271,16.2825,148.82,148.77,23.96229449]
[1719900482272,6.7213,148.78,148.77,23.96229449]
[1719900482654,12.12,148.8,148.77,23.96229449]
[1719900482977,6.7204,148.8,148.77,23.96229449]
[1719900483160,31.9583,148.86,148.8,23.96229449]
[1719900483464,12.12,148.83,148.8,23.96229449]
[1719900484368,31.9583,148.86,148.8,23.96229449]
[1719900484556,6.719,148.83,148.8,23.96229449]
[1719900485261,6.7195,148.82,148.8,23.96229449]
[1719900486352,6.7191,148.83,148.8,23.96229449]
[1719900487267,6.7195,148.82,148.8,23.96229449]
[1719900488161,6.7189,148.84,148.8,23.96229449]
[1719900489351,6.7192,148.83,148.8,23.96229449]
[1719900491469,6.7195,148.82,148.8,23.96229449]
[1719900494268,12.12,148.84,148.8,23.96229449]
[1719900494448,6.719,148.83,148.8,23.96229449]
[1719900494871,6.719,148.83,148.82,23.96229449]
[1719900495369,6.6259,148.88,148.82,23.96229449]
[1719900495546,12.12,148.86,148.82,23.96229449]
[1719900496473,6.7185,148.85,148.82,23.96229449]
[1719900497164,18.8378,148.86,148.84,23.96229449]
[1719900497369,6.7182,148.85,148.82,23.96229449]
[1719900497755,6.7174,148.87,148.84,23.96229449]
[1719900498269,6.7174,148.87,148.84,36.08229449]
[1719900498574,6.7174,148.87,148.86,23.96229449]
[1719900503476,6.7181,148.85,148.84,23.96229449]
[1719900505255,6.7178,148.86,148.84,23.96229449]
[1719900505683,6.7174,148.87,148.84,23.96229449]
[1719900506056,6.7174,148.87,148.86,23.96229449]
[1719900507880,5.7174,148.87,148.86,23.96229449]
[1719900509063,6.7169,148.88,148.86,23.96229449]
[1719900509575,6.7172,148.87,148.86,23.96229449]
[1719900511271,6.7169,148.88,148.86,23.96229449]
[1719900511577,6.7172,148.87,148.86,23.96229449]
[1719900511760,6.7169,148.88,148.86,23.96229449]
[1719900514888,6.7172,148.87,148.86,23.96229449]
[1719900515071,6.7178,148.86,148.84,23.96229449]
[1719900517685,6.7169,148.88,148.86,23.96229449]
[1719900518192,18.8364,148.89,148.86,23.96229449]
[1719900518363,6.7164,148.89,148.86,23.96229449]
[1719900518569,6.7164,148.89,148.88,23.96229449]
[1719900522202,18.8364,148.89,148.88,23.96229449]
[1719900522376,6.7164,148.89,148.88,23.96229449]
[1719900522688,18.8364,148.89,148.88,23.96229449]
[1719900523278,18.8364,148.89,148.86,23.96229449]
[1719900523279,12.12,148.89,148.86,23.96229449]
[1719900523472,12.12,148.89,148.84,23.96229449]
[1719900523683,6.7172,148.87,148.86,23.96229449]
[1719900526870,16.7924,148.88,148.84,23.96229449]
[1719900527084,18.8381,148.85,148.84,23.96229449]
[1719900527391,6.719,148.83,148.82,23.96229449]
[1719900527980,18.839,148.83,148.82,23.96229449]
[1719900529075,6.7195,148.82,148.8,23.96229449]
[1719900529273,18.8395,148.82,148.8,23.96229449]
[1719900531283,18.8391,148.83,148.8,23.96229449]
[1719900532988,12.12,148.84,148.82,23.96229449]
[1719900533188,18.8388,148.84,148.82,23.96229449]
[1719900533694,6.719,148.83,148.82,23.96229449]
[1719900534586,18.8387,148.84,148.82,23.96229449]
[1719900534782,15.3531,148.89,148.82,23.96229449]
[1719900535082,12.12,148.86,148.84,23.96229449]
[1719900535597,18.8377,148.86,148.84,23.96229449]
[1719900535784,6.7173,148.87,148.86,23.96229449]
[1719900536387,6.7179,148.86,148.84,23.96229449]
[1719900540893,6.7181,148.85,148.84,23.96229449]
[1719900543998,6.7178,148.86,148.84,23.96229449]
[1719900544496,6.7169,148.88,148.86,23.96229449]
[1719900544684,6.7169,148.88,148.84,36.08229449]
[1719900545195,6.7169,148.88,148.87,23.96229449]
[1719900546302,6.7164,148.89,148.87,23.96229449]
[1719900546599,12.12,148.9,148.85,36.08229449]
[1719900546799,12.12,148.9,148.85,23.96229449]
[1719900547104,6.7168,148.88,148.87,23.96229449]
[1719900547977,12.12,148.89,148.85,23.96229449]
[1719900548176,12.12,148.88,148.85,23.96229449]
[1719900548593,6.7173,148.87,148.85,23.96229449]
[1719900552108,6.7173,148.87,148.83,12.12]
[1719900552109,6.7169,148.88,148.87,23.96229449]
[1719900552903,12.12,148.89,148.87,23.96229449]
[1719900553083,16.7887,148.91,148.87,23.96229449]
[1719900553279,12.12,148.89,148.87,23.96229449]
[1719900553803,12.12,148.9,148.87,23.96229449]
[1719900554583,6.7168,148.88,148.87,23.96229449]
[1719900555291,16.7887,148.91,148.87,23.96229449]
[1719900555494,6.7173,148.87,148.85,23.96229449]
[1719900557202,6.7168,148.88,148.85,23.96229449]
[1719900557404,6.7168,148.88,148.87,23.96229449]
[1719900562108,6.7173,148.87,148.85,23.96229449]
[1719900564386,6.7169,148.88,148.87,23.96229449]
[1719900574419,18.8365,148.89,148.87,23.96229449]
[1719900574835,6.7168,148.88,148.87,23.96229449]
[1719900576504,6.7175,148.87,148.85,23.96229449]
[1719900580614,6.7169,148.88,148.85,23.96229449]
[1719900581726,6.7169,148.88,148.87,23.96229449]
[1719900584724,6.7165,148.89,148.87,23.96229449]
[1719900585125,6.7168,148.88,148.87,23.96229449]
[1719900585335,6.7168,148.88,148.85,23.96229449]
[1719900585510,6.7168,148.88,148.87,23.96229449]
[1719900588118,18.8365,148.89,148.87,23.96229449]
[1719900588633,6.7168,148.88,148.87,23.96229449]
[1719900602332,18.8365,148.89,148.87,23.96229449]
[1719900603020,6.7165,148.89,148.87,23.96229449]
[1719900603241,18.8365,148.89,148.87,23.96229449]
[1719900603724,6.7168,148.88,148.87,23.96229449]
[1719900604743,6.7164,148.89,148.87,23.96229449]
[1719900611248,6.7168,148.88,148.87,23.96229449]
[1719900613130,6.7168,148.88,148.86,23.96229449]
[1719900613630,18.8368,148.88,148.86,23.96229449]
[1719900613828,16.7909,148.9,148.84,23.96229449]
[1719900614026,16.7909,148.9,148.8,15.6633]
[1719900614027,6.719,148.83,148.82,23.96229449]
[1719900614228,18.839,148.83,148.82,23.96229449]
[1719900614753,18.8386,148.84,148.82,23.96229449]
[1719900615045,18.839,148.83,148.82,23.96229449]
[1719900615246,6.7199,148.82,148.78,23.96229449]
[1719900616331,18.8391,148.83,148.78,23.96229449]
[1719900616527,12.12,148.82,148.78,23.96229449]
[1719900617036,12.12,148.82,148.81,23.96229449]
[1719900618347,6.7187,148.84,148.81,23.96229449]
[1719900618549,6.7182,148.85,148.81,23.96229449]
[1719900618729,12.12,148.84,148.81,23.96229449]
[1719900620052,6.7182,148.85,148.81,23.96229449]
[1719900620254,12.12,148.84,148.81,23.96229449]
[1719900620458,18.8382,148.85,148.81,23.96229449]
[1719900620635,6.7177,148.86,148.81,23.96229449]
[1719900620837,12.12,148.85,148.81,23.96229449]
[1719900621247,12.12,148.85,148.83,23.96229449]
[1719900622656,6.7186,148.84,148.83,23.96229449]
[1719900623234,18.8386,148.84,148.83,23.96229449]
[1719900625145,6.7186,148.84,148.83,23.96229449]
[1719900626768,18.8383,148.85,148.83,23.96229449]
[1719900627268,6.7186,148.84,148.83,23.96229449]
[1719900627453,18.8386,148.84,148.83,23.96229449]
[1719900628060,6.7198,148.82,148.79,23.96229449]
[1719900628253,6.7202,148.81,148.79,23.96229449]
[1719900628461,18.8396,148.82,148.79,23.96229449]
[1719900629653,16.7943,148.86,148.79,23.96229449]
[1719900629856,12.12,148.83,148.79,23.96229449]
[1719900630053,12.12,148.83,148.81,23.96229449]
[1719900630244,12.12,148.84,148.81,23.96229449]
[1719900630670,6.7191,148.83,148.81,23.96229449]
[1719900631362,6.7195,148.82,148.81,23.96229449]
[1719900632256,18.8395,148.82,148.81,23.96229449]
[1719900632970,12.12,148.82,148.79,23.96229449]
[1719900633171,12.12,148.81,148.79,23.96229449]
[1719900634167,6.7204,148.8,148.79,23.96229449]
[1719900635371,18.84,148.81,148.79,23.96229449]
[1719900638660,18.8404,148.8,148.79,23.96229449]
[1719900639265,6.7204,148.8,148.79,23.96229449]
[1719900640152,18.84,148.81,148.79,23.96229449]
[1719900640761,6.7194,148.83,148.81,23.96229449]
[1719900640958,18.8394,148.83,148.81,23.96229449]
[1719900641162,18.8397,148.82,148.79,23.96229449]
[1719900641561,18.8397,148.82,148.81,23.96229449]
[1719900642458,18.8391,148.83,148.81,23.96229449]
[1719900643077,6.7204,148.8,148.79,23.96229449]
[1719900643368,18.8404,148.8,148.79,23.96229449]
[1719900645996,12.12,148.8,148.79,23.96229449]
[1719900646153,6.7196,148.82,148.79,23.96229449]
[1719900646354,6.7199,148.81,148.79,23.96229449]
[1719900646554,18.8399,148.81,148.79,23.96229449]
[1719900647067,12.12,148.81,148.79,23.96229449]
[1719900647582,18.8399,148.81,148.79,23.96229449]
[1719900648973,12.12,148.81,148.79,23.96229449]
[1719900649281,6.7191,148.83,148.81,23.96229449]
[1719900649576,18.8391,148.83,148.81,23.96229449]
[1719900649881,12.12,148.82,148.81,23.96229449]
[1719900650178,18.8395,148.82,148.81,23.96229449]
[1719900650997,12.12,148.82,148.81,23.96229449]
[1719900651784,18.8392,148.83,148.81,23.96229449]
[1719900652480,18.8395,148.82,148.81,23.96229449]
[1719900652683,6.7192,148.83,148.81,23.96229449]